bitfinex-derivatives/quotes_ETHF0:USTF0_20250918
["timestamp","ask_amount","ask_price","bid_price","bid_amount"]
[1758158995571,3.2078,4612.2,4612.1,0.6874]
[1758158996282,3.4268,4612.2,4612.1,0.6874]
[1758158996686,4.48723836,4612.2,4612.1,0.6874]
[1758158997478,4.26823836,4612.2,4612.1,0.6874]
[1758158997683,4.48723836,4612.2,4612.1,0.6874]
[1758158997882,4.43677382,4612.2,4612.1,0.6874]
[1758158998081,4.65577382,4612.2,4612.1,0.6874]
[1758158998484,4.65577382,4612.2,4612.1,0.2957]
[1758158998984,4.65577382,4612.2,4612.0,0.1143]
[1758158999178,4.65577382,4612.2,4612.1,0.2957]
[1758159000281,4.43677382,4612.2,4612.1,0.4895]
[1758159000481,3.2078,4612.2,4612.1,0.6904]
[1758159000982,3.4268,4612.2,4612.1,0.6904]
[1758159001184,3.4268,4612.2,4612.1,0.2957]
[1758159001385,3.4268,4612.2,4612.0,0.1143]
[1758159001580,3.4268,4612.2,4611.5,0.1143]
[1758159001581,1.22897382,4612.1,4611.5,0.1143]
[1758159001879,4.43677382,4611.6,4611.0,0.4192]
[1758159002080,4.43677382,4611.1,4610.5,0.4192]
[1758159002384,3.2078,4610.6,4610.5,0.6238]
[1758159002577,3.2078,4610.6,4610.5,0.8247]
[1758159002780,1.22897382,4611.7,4611.6,0.7104]
[1758159003079,3.2078,4612.5,4612.1,0.7104]
[1758159003279,3.2078,4612.5,4612.2,0.3049]
[1758159003477,3.2078,4612.5,4612.4,0.7104]
[1758159003777,3.2078,4613.0,4612.9,0.4055]
[1758159003995,3.2078,4613.0,4612.5,0.4296]
[1758159003996,3.2078,4613.6,4613.5,0.8351]
[1758159004178,35.134,4614.6,4614.2,0.2046]
[1758159004179,3.2078,4614.3,4614.2,0.2046]
[1758159004386,3.2078,4614.3,4614.2,0.7104]
[1758159004691,3.2078,4614.9,4614.8,0.7104]
[1758159004986,3.4288,4614.9,4614.8,0.7104]
[1758159005178,3.2078,4614.9,4614.8,0.7104]
[1758159005483,3.2078,4616.6,4616.5,0.3293]
[1758159005681,3.2078,4616.6,4616.5,0.4126]
[1758159005875,3.9364174,4616.6,4616.5,0.4126]
[1758159006079,3.2078,4616.6,4616.5,0.8063]
[1758159006283,3.4298,4616.6,4616.5,0.8063]
[1758159006773,3.2078,4616.6,4616.5,0.8063]
[1758159006979,0.222,4616.7,4616.6,0.6816]
[1758159007373,0.222,4616.7,4616.6,0.4882]
[1758159007577,0.222,4616.7,4616.6,0.6816]
[1758159007777,0.222,4616.7,4616.6,0.2879]
[1758159007984,8.3812685,4616.7,4615.5,0.4126]
[1758159008181,3.2078,4615.8,4615.1,0.2879]
[1758159008380,0.222,4615.7,4615.1,0.4882]
[1758159008585,3.2078,4615.2,4615.1,0.2879]
[1758159008785,3.4298,4615.2,4614.7,0.2879]
[1758159008986,3.4298,4615.2,4614.5,0.1264]
[1758159009185,3.2078,4615.2,4615.1,0.4882]
[1758159009482,3.2078,4615.2,4615.1,0.6816]
[1758159009683,1.57741677,4618.2,4616.3,0.6816]
[1758159009684,3.2078,4616.4,4616.3,0.6816]
[1758159009890,3.4308,4616.4,4616.3,0.6816]
[1758159010079,3.2078,4616.4,4616.3,0.2879]
[1758159010284,3.2078,4617.0,4616.6,0.2879]
[1758159010685,0.224,4616.9,4616.6,0.2879]
[1758159010885,0.224,4616.8,4616.6,0.2879]
[1758159011090,3.2078,4617.0,4616.6,0.2879]
[1758159011383,0.224,4616.9,4616.6,0.2879]
[1758159012085,4.1592685,4616.8,4615.6,0.2879]
[1758159012290,3.2078,4616.2,4615.6,0.2879]
[1758159012485,0.224,4616.1,4616.0,0.1264]
[1758159012690,0.224,4616.1,4615.5,0.4143]
[1758159012891,3.2078,4615.7,4615.5,0.4143]
[1758159013185,3.2078,4615.7,4615.6,0.2879]
[1758159013387,3.4318,4615.7,4615.6,0.2879]
[1758159014288,3.2078,4615.7,4615.6,0.2879]
[1758159014583,3.2078,4616.7,4616.1,0.2879]
[1758159014789,3.2078,4616.7,4616.6,0.2879]
[1758159014987,3.4318,4616.7,4616.6,0.2879]
[1758159015189,3.2078,4616.7,4616.6,0.2879]
[1758159015490,3.4318,4616.7,4616.6,0.2879]
[1758159016390,3.4318,4616.7,4616.0,0.1264]
[1758159016582,3.2078,4616.2,4616.1,0.2879]
[1758159016783,3.4318,4616.2,4616.0,0.1264]
[1758159016985,3.2078,4616.2,4616.1,0.2879]
[1758159017183,3.4318,4616.2,4616.1,0.2879]
[1758159018089,3.4318,4616.2,4615.6,0.2879]
[1758159018290,3.2078,4616.2,4615.6,0.2879]
[1758159018483,0.224,4616.1,4616.0,0.4143]
[1758159019786,3.2078,4616.2,4616.1,0.2879]
[1758159019985,3.4318,4616.2,4616.1,0.2879]
[1758159020888,3.2078,4616.2,4616.1,0.2879]
[1758159021092,3.4318,4616.2,4616.1,0.2879]
[1758159021494,3.4318,4616.2,4615.6,0.2879]
[1758159023395,3.4318,4616.2,4616.1,0.2879]
[1758159024192,3.2078,4616.2,4616.1,0.2879]
[1758159024496,3.4318,4616.2,4615.6,0.2879]
[1758159025498,3.2078,4615.7,4615.5,0.0216]
[1758159025687,0.224,4615.6,4615.5,0.3095]
[1758159025885,0.224,4615.6,4615.5,0.0216]
[1758159026499,0.224,4615.6,4615.5,0.3095]
[1758159026995,4.224,4615.6,4615.0,0.1247]
[1758159027290,3.2078,4615.1,4614.5,0.1264]
[1758159027497,4.1592685,4615.3,4614.0,0.4143]
[1758159027498,3.2078,4614.6,4614.0,0.4143]
[1758159027690,0.224,4614.5,4614.0,0.1264]
[1758159028096,0.224,4614.5,4614.1,0.2879]
[1758159028294,0.224,4614.5,4614.0,0.1264]
[1758159028494,0.224,4614.5,4614.1,0.2879]
[1758159028706,0.224,4614.5,4614.0,0.1264]
[1758159029198,0.224,4614.5,4614.1,0.2879]
[1758159030094,0.52100542,4614.4,4614.1,0.2879]
[1758159030296,0.224,4614.3,4614.1,0.2879]
[1758159031300,0.224,4614.3,4614.0,0.1264]
[1758159031500,3.2078,4614.1,4614.0,0.4143]
[1758159031690,3.2078,4614.1,4614.0,0.6146]
[1758159031896,3.2078,4614.1,4614.0,0.808]
[1758159032097,3.4318,4614.1,4614.0,0.808]
[1758159032489,3.2078,4614.7,4614.5,0.1264]
[1758159032690,3.2078,4614.7,4614.6,0.2879]
[1758159032901,3.4318,4614.7,4614.6,0.2879]
[1758159033804,0.224,4614.7,4614.6,0.2879]
[1758159035899,0.224,4614.7,4614.6,0.6921]
[1758159036095,3.95480474,4614.7,4614.6,0.2879]
[1758159036296,4.17248691,4614.7,4614.6,0.2879]
[1758159038196,4.17248691,4614.7,4614.1,0.5135]
[1758159038396,0.5180686,4614.6,4614.5,0.4297]
[1758159038902,0.5180686,4614.6,4614.5,0.6396]
[1758159039200,0.5180686,4614.6,4614.5,0.8435]
[1758159039501,3.2078,4614.7,4614.5,0.5399]
[1758159039691,0.224,4614.9,4614.8,0.4138]
[1758159039891,0.224,4614.9,4614.8,0.7174]
[1758159040093,0.4184,4614.9,4614.8,0.7174]
[1758159040390,0.3856,4614.6,4614.5,0.6396]
[1758159040603,0.6096,4614.6,4614.5,0.6396]
[1758159040791,0.224,4614.6,4614.5,0.8435]
[1758159042099,3.4022,4615.4,4615.3,0.5135]
[1758159042405,3.6262,4615.4,4615.3,0.5135]
[1758159042904,3.8174,4615.4,4615.3,0.5135]
[1758159043404,3.8174,4615.4,4615.3,0.7174]
[1758159043798,3.2078,4615.4,4615.3,0.7174]
[1758159044095,3.2078,4616.0,4615.9,0.4138]
[1758159044297,3.4318,4616.0,4615.9,0.7174]
[1758159044900,3.6262,4616.0,4615.9,0.7174]
[1758159046105,0.3856,4615.7,4615.6,0.3036]
[1758159046305,0.6096,4615.7,4615.6,0.3036]
[1758159046506,0.809,4615.7,4615.6,0.3036]
[1758159047303,0.4184,4615.7,4615.6,0.2099]
[1758159047510,3.2078,4616.0,4615.7,0.3036]
[1758159047705,3.2078,4616.0,4615.9,0.7174]
[1758159047901,3.4318,4616.0,4615.9,0.7174]
[1758159050506,3.8174,4616.0,4615.9,0.7174]
[1758159050702,3.8174,4616.0,4615.9,0.5135]
[1758159051010,3.8174,4616.0,4615.9,0.7174]
[1758159051404,0.3856,4615.7,4615.6,0.3036]
[1758159051602,0.809,4615.7,4615.1,0.3036]
[1758159052811,0.1944,4614.8,4614.7,0.5135]
[1758159053005,0.3856,4614.8,4614.7,0.5135]
[1758159053211,0.6096,4614.8,4614.7,0.5135]
[1758159053512,0.6096,4614.8,4614.3,3.2078]
[1758159053705,0.585,4614.7,4613.6,3.2078]
[1758159053905,0.585,4614.7,4614.1,0.3036]
[1758159054708,0.3856,4614.4,4614.3,0.3036]
[1758159054902,0.809,4614.4,4614.3,0.3036]
[1758159055106,0.6096,4614.4,4614.3,0.3036]
[1758159055306,0.6096,4614.4,4614.3,0.5135]
[1758159056014,0.6096,4614.4,4614.3,0.7174]
[1758159057505,0.3856,4614.4,4614.3,0.7174]
[1758159057812,0.223,4614.4,4614.3,0.7174]
[1758159058206,3.2078,4615.6,4614.5,0.1261]
[1758159058404,0.74147479,4615.5,4614.8,0.3036]
[1758159058710,0.90407479,4615.4,4615.3,0.5105]
[1758159059309,0.3856,4615.4,4615.3,0.5105]
[1758159059509,0.1944,4615.4,4615.3,0.7056]
[1758159059708,0.4174,4615.4,4615.3,0.7056]
[1758159059903,0.6131,4615.4,4615.3,0.7056]
[1758159060210,1.13162228,4615.4,4615.3,0.4912]
[1758159060515,3.2078,4615.6,4615.5,0.1199]
[1758159060715,3.2078,4615.6,4615.5,0.8062]
[1758159060716,3.4308,4615.6,4615.5,0.8062]
[1758159061313,3.6214,4615.6,4615.5,0.8062]
[1758159062113,3.8171,4615.6,4615.5,0.6111]
[1758159062314,4.0165,4615.6,4615.0,0.4267]
[1758159063117,0.3863,4615.1,4615.0,0.4267]
[1758159063315,0.6093,4615.1,4615.0,0.6173]
[1758159064026,4.0165,4615.1,4614.5,0.4267]
[1758159065015,4.0165,4615.1,4614.6,0.3006]
[1758159065220,4.0165,4615.1,4614.5,0.1261]
[1758159065420,4.0165,4615.1,4614.5,0.4267]
[1758159065822,0.4076,4614.4,4614.3,0.3144]
[1758159066025,0.8299,4614.4,4614.3,0.3144]
[1758159066322,0.8299,4614.4,4614.2,0.1733]
[1758159066323,0.6069,4614.3,4614.2,0.1733]
[1758159066518,0.4076,4614.3,4614.2,0.4877]
[1758159067116,0.6306,4614.3,4614.2,0.4877]
[1758159067516,0.8299,4614.3,4614.2,0.1733]
[1758159067928,0.6069,4614.3,4614.2,0.1733]
[1758159068124,0.8299,4614.3,4614.2,0.1733]
[1758159068821,0.8299,4614.3,4613.0,0.1199]
[1758159068822,0.0996,4614.0,4613.1,0.3144]
[1758159069035,7.47350231,4613.8,4613.1,0.3144]
[1758159069324,8.20023738,4613.8,4613.1,0.3144]
[1758159069526,0.6069,4613.2,4612.6,0.3144]
[1758159069827,0.206,4612.7,4612.6,0.7224]
[1758159071028,0.223,4612.8,4612.7,0.7224]
[1758159074435,0.429,4612.8,4612.7,0.7224]
[1758159076035,0.6306,4612.8,4612.7,0.7224]
[1758159076534,0.223,4612.8,4612.7,0.7224]
[1758159076830,0.429,4612.8,4612.7,0.7224]
[1758159078239,0.6306,4612.8,4612.7,0.7224]
[1758159078737,0.429,4612.8,4612.7,0.7224]
[1758159083841,0.223,4612.8,4612.7,0.7224]
[1758159086048,0.429,4612.8,4612.7,0.7224]
[1758159086347,0.6306,4612.8,4612.7,0.7224]
[1758159086856,0.223,4612.8,4612.7,0.7224]
[1758159089045,3.2078,4613.2,4613.0,0.1149]
[1758159089247,3.2078,4614.0,4613.1,0.7224]
[1758159089453,3.4138,4614.0,4613.9,0.7224]
[1758159089854,3.6358,4614.0,4613.9,0.7224]
[1758159090458,3.2078,4614.5,4613.9,0.7224]
[1758159090652,3.6154,4615.2,4615.1,0.7224]
[1758159090853,3.8374,4615.2,4615.1,0.7224]
[1758159091162,4.25338,4615.2,4615.1,0.523]
[1758159091363,8.25338,4615.2,4615.1,0.523]
[1758159091555,8.7710264,4615.2,4615.1,0.523]
[1758159091862,8.0367,4615.2,4615.1,0.523]
[1758159092161,8.33252921,4615.2,4615.1,0.3144]
[1758159092659,8.55452921,4615.2,4615.1,0.3144]
[1758159095161,4.13322921,4615.2,4615.1,0.7224]
[1758159095356,4.35522921,4615.2,4615.1,0.7224]
[1758159095562,3.8374,4615.2,4615.1,0.7224]
[1758159096463,4.0366,4615.2,4615.1,0.7224]
[1758159096763,3.8374,4615.2,4615.1,0.7224]
[1758159097162,4.0366,4615.2,4615.1,0.3144]
[1758159097465,4.0366,4615.2,4614.6,0.2948]
[1758159097660,3.8146,4615.2,4615.1,0.1996]
[1758159097962,3.6154,4615.2,4615.1,0.4944]
[1758159098161,3.8374,4615.2,4615.1,0.6999]
[1758159098362,3.4138,4615.2,4615.1,0.6999]
[1758159098557,3.6358,4615.2,4615.1,0.6999]
[1758159099466,3.2078,4615.2,4615.1,0.6999]
[1758159099661,0.222,4615.3,4615.2,0.2948]
[1758159099860,3.2078,4615.7,4615.5,0.1219]
[1758159100162,3.2078,4615.7,4615.6,0.6999]
[1758159100365,3.4298,4615.7,4615.6,0.6999]
[1758159100558,0.222,4615.7,4615.6,0.6999]
[1758159102962,35.3134,4616.2,4616.1,0.6999]
[1758159103161,35.5354,4616.2,4616.1,0.6999]
[1758159103363,35.3134,4616.2,4616.1,0.6999]
[1758159103563,35.5354,4616.2,4616.1,0.6999]
[1758159104165,35.3134,4616.2,4616.1,0.6999]
[1758159104469,35.7271,4616.2,4616.1,0.6999]
[1758159107263,35.5051,4616.2,4616.1,0.6999]
[1758159107565,0.1992,4616.8,4616.1,0.6999]
[1758159107566,3.407,4616.8,4616.1,0.6999]
[1758159107774,0.3811,4616.6,4616.5,0.3215]
[1758159107966,0.3811,4616.6,4616.5,0.6163]
[1758159109675,0.6031,4616.6,4616.5,0.8218]
[1758159113072,0.222,4616.6,4616.5,0.8218]
[1758159113478,3.2078,4616.8,4616.5,0.527]
[1758159113771,0.222,4616.7,4616.6,0.6999]
[1758159114174,0.4114,4616.7,4616.6,0.6999]
[1758159114373,0.6031,4616.7,4616.6,0.6999]
[1758159116774,0.1894,4617.1,4617.0,0.527]
[1758159116968,0.6021,4617.1,4617.0,0.8218]
[1758159117276,0.8013,4617.1,4617.0,0.6163]
[1758159118467,0.5803,4617.1,4617.0,0.6163]
[1758159118667,0.6031,4617.1,4617.0,0.6163]
[1758159118874,0.3811,4617.1,4617.0,0.8218]
[1758159119076,0.6031,4617.1,4617.0,0.8218]
[1758159119576,0.3811,4617.1,4617.0,0.8218]
[1758159120077,0.6031,4617.1,4617.0,0.8218]
[1758159120277,3.2078,4617.3,4617.1,0.3037]
[1758159120481,0.73939705,4617.2,4617.1,0.711]
[1758159120679,0.94129705,4617.2,4617.1,0.711]
[1758159120874,0.51739705,4617.2,4617.1,0.711]
[1758159121080,0.6227,4617.2,4617.1,0.5123]
[1758159121275,1.5700484,4617.2,4617.1,0.3037]
[1758159121781,1.3708484,4617.2,4617.1,0.711]
[1758159122576,1.1720484,4617.2,4617.1,0.711]
[1758159122879,0.4229,4617.2,4617.1,0.711]
[1758159123182,0.94061712,4617.2,4617.1,0.711]
[1758159123684,1.17137694,4617.2,4617.1,0.711]
[1758159123878,0.95037694,4617.2,4617.1,0.711]
[1758159124078,1.17137694,4617.2,4617.1,0.711]
[1758159124282,1.17145422,4617.2,4617.1,0.711]
[1758159125079,1.17144548,4617.2,4617.1,0.711]
[1758159125682,0.95044548,4617.2,4617.1,0.711]
[1758159125882,0.74854548,4617.2,4617.1,0.711]
[1758159126185,0.96954548,4617.2,4617.1,0.711]
[1758159128184,0.74854548,4617.2,4617.1,0.711]
[1758159128386,0.96954548,4617.2,4617.1,0.711]
[1758159132786,0.74854548,4617.2,4617.1,0.711]
[1758159133281,1.14944548,4617.2,4617.1,0.711]
[1758159133689,1.34804548,4617.2,4617.1,0.711]
[1758159134085,1.14944548,4617.2,4617.1,0.711]
[1758159134285,1.37044548,4617.2,4617.1,0.711]
[1758159135389,1.56904548,4617.2,4616.9,0.318]
[1758159135589,0.5995,4617.0,4616.9,0.318]
[1758159135887,1.56904548,4617.0,4616.9,0.504]
[1758159136082,1.56972062,4617.0,4616.9,0.504]
[1758159136287,1.37112062,4617.0,4616.9,0.504]
[1758159136482,0.74922062,4617.0,4616.9,0.7117]
[1758159136988,0.74922062,4617.0,4616.9,1.93796707]
[1758159137187,3.2078,4617.8,4617.4,0.7117]
[1758159137390,0.94567533,4617.7,4617.6,0.7117]
[1758159137785,1.13807533,4617.7,4617.6,0.7117]
[1758159138183,0.91707533,4617.7,4617.6,0.7117]
[1758159138482,1.13807533,4617.7,4617.6,0.7117]
[1758159141892,0.91707533,4617.7,4617.6,0.7117]
[1758159142095,1.13807533,4617.7,4617.6,0.7117]
[1758159145293,0.6219,4617.7,4617.6,0.7117]
[1758159149394,0.8205,4617.7,4617.6,0.7117]
[1758159149692,0.8205,4617.7,4617.6,0.2964]
[1758159150287,0.8205,4617.7,4617.6,0.504]
[1758159150488,0.6219,4617.7,4617.6,0.504]
[1758159151498,0.6219,4617.7,4617.6,0.7117]
[1758159152500,0.8205,4617.7,4617.6,0.504]
[1758159152701,0.8205,4617.7,4617.6,0.2964]
[1758159152993,0.8205,4617.7,4617.6,0.504]
[1758159153200,0.6219,4617.7,4617.6,0.504]
[1758159153498,0.6219,4617.7,4617.6,0.7117]
[1758159154102,1.13817461,4617.7,4617.6,0.7117]
[1758159154602,0.51627461,4617.7,4617.6,0.7117]
[1758159158200,0.022,4618.2,4618.1,0.6932]
[1758159158395,0.53793323,4618.2,4618.1,1.91946707]
[1758159159298,0.022,4618.2,4618.1,1.91946707]
[1758159161304,0.022,4618.2,4618.1,0.6932]
[1758159161602,3.2078,4619.3,4619.0,0.0543]
[1758159161807,0.1147,4620.5,4619.2,1.61736707]
[1758159161998,0.2026,4621.0,4620.4,1.22626707]
[1758159162200,0.5257,4621.0,4620.9,3.2078]
[1758159163894,0.8211,4621.0,4620.9,3.2078]
[1758159164501,0.8211,4621.0,4620.7,0.0216]
[1758159164502,1.0431,4621.0,4620.7,0.0216]
[1758159164693,0.8211,4621.0,4620.7,0.0216]
[1758159165096,0.4101,4621.0,4620.9,3.2078]
[1758159165309,0.4101,4621.0,4620.9,4.65606707]
[1758159165499,0.4101,4621.0,4620.9,3.4298]
[1758159166200,0.8211,4621.0,4620.9,3.2078]
[1758159166996,0.8211,4621.0,4620.7,0.0216]
[1758159166997,2.04736707,4621.0,4620.7,0.0216]
[1758159167205,0.5174,4620.9,4620.8,3.2078]
[1758159167499,0.7064,4620.9,4620.8,3.2078]
[1758159168207,0.9294,4620.9,4620.7,0.0216]
[1758159169501,0.2954,4620.8,4620.7,1.24786707]
[1758159169703,0.498,4620.8,4620.7,1.24786707]
[1758159169904,0.2954,4620.8,4620.7,1.24786707]
[1758159170212,0.2954,4620.8,4620.7,4.0216]
[1758159171104,0.1147,4623.5,4620.8,3.2078]
[1758159171404,0.1147,4626.0,4623.1,3.2078]
[1758159171611,0.1147,4626.0,4625.8,3.2078]
[1758159171798,0.1147,4626.0,4625.7,3.2078]
[1758159173103,0.2954,4625.9,4625.7,3.2078]
[1758159173303,0.1147,4626.0,4625.7,3.2078]
[1758159173498,0.4101,4626.0,4625.7,3.2078]
[1758159173700,0.2954,4625.9,4625.7,3.2078]
[1758159173910,0.1147,4626.0,4625.7,3.2078]
[1758159174302,0.2954,4625.9,4625.7,3.2078]
[1758159174512,0.1147,4625.5,4625.2,3.2078]
[1758159174804,0.2954,4625.4,4625.2,3.2078]
[1758159175016,0.1147,4625.5,4625.2,3.2078]
[1758159175214,0.2954,4625.4,4625.2,3.2078]
[1758159176304,0.1147,4625.5,4625.2,3.2078]
[1758159176816,0.2954,4625.4,4625.2,3.2078]
[1758159177012,0.1147,4625.5,4625.2,3.2078]
[1758159177604,0.2954,4625.4,4625.2,3.2078]
[1758159177811,0.1147,4625.5,4625.2,3.4358]
[1758159178106,0.4153,4626.0,4625.3,4.2162]
[1758159178310,0.4153,4626.0,4625.9,3.2078]
[1758159178616,0.4153,4626.0,4625.9,3.4358]
[1758159179010,0.1147,4626.0,4625.9,3.4358]
[1758159179516,0.4153,4626.0,4625.9,3.4358]
[1758159179718,0.4153,4626.0,4625.9,3.2078]
[1758159184519,0.4153,4626.0,4625.9,6.84854218]
[1758159185214,0.4153,4626.0,4625.9,3.2078]
[1758159185414,0.4153,4626.0,4625.9,3.4348]
[1758159185915,0.8111,4626.0,4625.9,3.2078]
[1758159186417,0.4153,4626.0,4625.9,3.2078]
[1758159186812,0.6151,4626.0,4625.9,3.2078]
[1758159187007,0.4244,4626.5,4625.9,3.4348]
[1758159187212,0.8306,4626.5,4626.4,3.2078]
[1758159189718,4.8306,4626.5,4626.4,3.2078]
[1758159191014,0.8346,4626.0,4625.9,3.2078]
[1758159191619,0.8346,4625.5,4625.4,3.2078]
[1758159192416,0.8346,4625.5,4625.4,3.4071]
[1758159192618,0.3097,4625.9,4625.4,7.24474218]
[1758159192822,0.3097,4626.4,4625.8,0.7064]
[1758159193019,0.5095,4626.4,4626.3,0.1993]
[1758159193222,1.00946997,4626.4,4626.3,0.1993]
[1758159193612,0.5095,4626.4,4626.3,0.3962]
[1758159194022,0.5095,4626.4,4626.0,3.2078]
[1758159194023,0.4062,4626.4,4626.0,3.2078]
[1758159194219,0.7159,4626.1,4626.0,3.4071]
[1758159194623,0.7159,4626.1,4626.0,3.2078]
[1758159194825,1.2165875,4626.1,4626.0,3.2078]
[1758159196031,0.3097,4625.3,4625.0,0.227]
[1758159196227,0.7159,4625.3,4625.2,0.1993]
[1758159197623,0.7159,4625.3,4625.2,0.3962]
[1758159198333,1.2188535,4625.3,4625.2,0.3962]
[1758159198630,0.1147,4626.5,4625.2,4.3962]
[1758159198820,3.5175,4627.3,4626.2,3.64074218]
[1758159199127,0.1187,4627.5,4626.9,3.64074218]
[1758159199432,0.1187,4627.5,4627.3,3.2078]
[1758159199625,0.3097,4627.7,4627.3,3.4348]
[1758159199929,0.3097,4627.7,4627.4,3.64074218]
[1758159200127,0.1187,4628.0,4627.4,3.64074218]
[1758159200325,0.3097,4627.4,4627.3,3.4348]
[1758159201830,0.3097,4627.9,4627.3,3.4348]
[1758159202318,0.3097,4627.4,4627.3,3.4348]
[1758159203234,0.3097,4627.4,4627.3,3.2078]
[1758159204328,0.3097,4627.9,4627.3,3.2078]
[1758159204525,0.1187,4628.0,4627.7,3.64074218]
[1758159204729,0.3097,4627.9,4627.7,3.64074218]
[1758159204927,0.1187,4628.0,4627.7,3.64074218]
[1758159205532,0.3097,4627.9,4627.7,3.64074218]
[1758159206226,0.1187,4628.0,4627.7,3.64074218]
[1758159206422,0.3097,4627.9,4627.7,3.64074218]
[1758159207320,0.1187,4628.0,4627.3,3.2078]
[1758159207522,0.3097,4627.4,4627.3,3.2078]
[1758159207728,0.3097,4627.4,4627.3,3.4348]
[1758159207923,0.3097,4627.4,4627.3,3.2078]
[1758159208130,0.3097,4626.9,4626.8,3.2078]
[1758159209825,0.3097,4626.9,4626.7,1.0]
[1758159209826,0.1187,4627.0,4626.7,1.0]
[1758159210135,0.1187,4627.0,4625.7,3.3807]
[1758159210136,0.1187,4626.0,4625.7,3.3807]
[1758159210837,0.3097,4625.8,4625.7,3.3807]
[1758159211135,0.8071581,4625.8,4625.7,0.1729]
[1758159211934,0.8071581,4625.8,4625.6,3.2078]
[1758159212136,0.8071581,4625.7,4625.1,3.2078]
[1758159212331,0.1187,4625.5,4625.1,3.2078]
[1758159212529,0.3097,4625.3,4625.1,3.2078]
[1758159212734,0.8071581,4625.2,4625.1,3.2078]
[1758159215942,1.0069581,4625.2,4625.1,3.4071]
[1758159216246,0.5095,4625.2,4625.1,3.4071]
[1758159218344,0.7166,4625.2,4625.1,3.2078]
[1758159218544,0.7166,4625.2,4624.9,0.1945]
[1758159218747,0.3447,4625.5,4624.9,0.3973]
[1758159218748,0.8282,4625.0,4624.9,0.3973]
[1758159219442,0.8282,4625.0,4624.9,0.1945]
[1758159219945,5.04442,4625.0,4624.9,0.1945]
[1758159220139,5.53866629,4625.0,4624.9,0.1945]
[1758159220547,5.32244629,4625.0,4624.9,0.1945]
[1758159221446,5.54844629,4625.0,4624.9,0.1945]
[1758159223345,0.6211,4625.0,4624.9,0.6013]
[1758159223543,0.2913,4625.4,4624.9,4.0026]
[1758159223846,0.2913,4625.2,4625.1,0.6003]
[1758159224146,0.8282,4625.0,4624.9,0.1945]
[1758159224747,4.8282,4625.0,4624.9,0.1945]
[1758159226751,0.8282,4624.0,4623.9,0.2028]
[1758159226946,0.7066,4623.9,4623.8,3.2078]
[1758159227739,0.7066,4623.9,4623.8,3.4106]
[1758159228751,0.7066,4623.9,4623.1,3.2078]
[1758159228752,0.2913,4623.8,4623.1,3.2078]
[1758159228952,0.4995,4623.8,4623.7,0.4068]
[1758159229153,0.3298,4624.0,4623.9,0.4068]
[1758159229353,1.0542,4624.0,4623.9,0.4068]
[1758159229560,1.0542,4624.0,4623.9,0.2028]
[1758159229756,0.2082,4623.7,4623.6,3.4106]
[1758159229951,0.4995,4623.7,4623.6,3.4106]
[1758159230154,0.7066,4623.7,4623.6,3.2078]
[1758159231259,0.2913,4623.6,4623.1,3.2078]
[1758159231461,1.0542,4623.5,4623.4,0.2028]
[1758159233058,1.0542,4623.5,4623.4,0.4068]
[1758159235456,0.8282,4623.5,4623.4,0.4068]
[1758159235660,1.0542,4623.5,4623.4,0.2028]
[1758159236367,0.7629,4623.5,4623.1,3.2078]
[1758159236567,0.2082,4623.2,4623.1,3.6146]
[1758159236764,0.4995,4623.2,4623.1,3.6146]
[1758159237366,0.1216,4624.0,4623.1,3.6146]
[1758159237367,0.3476,4624.0,4623.9,0.4068]
[1758159237572,0.3476,4624.0,4623.9,0.6003]
[1758159237872,0.8471,4624.0,4623.9,0.6003]
[1758159238072,0.6211,4624.0,4623.9,0.6003]
[1758159238465,0.4287,4624.5,4623.9,0.6003]
[1758159238665,0.3071,4624.3,4624.0,0.1934]
[1758159238865,0.3071,4624.3,4624.2,0.401]
[1758159239567,0.5113,4624.3,4624.2,0.401]
[1758159239765,0.7037,4624.3,4624.2,0.401]
[1758159239964,0.7037,4624.3,4624.2,0.2032]
[1758159240366,0.9297,4624.3,4624.2,0.401]
[1758159240665,0.9287,4624.3,4624.2,0.401]
[1758159241868,0.7037,4624.3,4624.2,0.401]
[1758159242069,0.9287,4624.3,4624.2,0.401]
[1758159243967,0.6216,4624.3,4623.7,3.4012]
[1758159244173,0.5198,4624.0,4623.9,0.2032]
[1758159244371,0.5198,4624.0,4623.9,0.401]
[1758159244372,0.8269,4624.0,4623.9,0.401]
[1758159244881,0.3071,4623.9,4623.7,3.2078]
[1758159245182,0.7037,4623.8,4623.7,3.2078]
[1758159245977,0.7037,4623.8,4623.7,3.6066]
[1758159246175,0.225,4623.9,4623.8,0.193]
[1758159246374,0.4352,4625.0,4624.4,0.3988]
[1758159246571,0.4352,4625.0,4624.9,0.5918]
[1758159246572,0.3136,4625.0,4624.9,0.5918]
[1758159246977,0.3136,4625.4,4624.9,0.5918]
[1758159247177,0.1239,4626.0,4625.3,0.5918]
[1758159247380,0.5386,4625.9,4625.3,0.5918]
[1758159247579,0.5386,4625.9,4625.8,0.5918]
[1758159248084,0.225,4625.9,4625.8,0.5918]
[1758159248381,0.3136,4626.0,4625.8,0.5918]
[1758159248580,0.5065,4625.9,4625.8,0.3988]
[1758159248983,0.3136,4625.9,4625.8,0.5918]
[1758159249277,0.3136,4625.9,4625.8,0.3988]
[1758159250880,0.5065,4625.9,4625.8,0.3988]
[1758159251985,0.6304,4627.0,4626.9,0.3988]